{"text_format":"1","workbook":"xlsx","n_sheets":1,"sheets":["E1300170"],"not_rendered":{"charts":0,"images":1,"macros":1,"external_links":0,"defined_names":11,"comments":0,"pivot_tables":0},"unopened":[],"bounds":{"document_bytes":16777216,"sheet_cells":100000,"rows_first":2000,"rows_last":500,"rows_between":2000,"halvings":0,"cell_chars":16384,"cell_head_chars":4096},"cells_cut":0,"cells_raw":0,"read":"whole","date_system":"1900"}

{"sheet":"E1300170","index":0,"n_rows":118,"n_cols":29,"rows_kept":118,"cut":false,"hidden":false,"merged":[[43,3,43,9],[37,28,40,31],[42,10,42,13],[35,26,41,26],[10,2,10,4],[13,2,13,4],[11,2,11,4],[22,2,22,5],[14,2,14,4],[44,21,44,22],[43,17,43,18],[35,24,42,24],[35,25,42,25],[35,27,42,27]]}
[]
[null,"CALIFORNIA INSTITUTE OF TECHNOLOGY"]
[]
[]
[]
[null,"FORMAL DRAWING TREE REFERENCE DOCUMENT"]
[]
[null,"TITLE: ","aLIGO TCS Top Level Corner LVEA Assembly, In Air"]
[null,null,"full production for both H1 and L1"]
[]
[null,"DOCUMENT CONTROL NO.:","E1400005",null,null,"-v1"]
[null,"RELATED DOC. CHANGE NO.: ","E1400004",null,null,"-x0"]
[]
[null,"CONTAINING ASSEMBLIES:","D1001227",null,null,"-v5"]
[null,null,"D1000634",null,null,"-v1"]
[null,null,"D1101627",null,null,"-v3"]
[null,null,"D1000635",null,null,"-v1"]
[null,null,"D1102389",null,null,"-v2"]
[null,null,"D1102397",null,null,"-v2"]
[null,null,"D1300617",null,null,"-v1"]
[]
[null,"AUTHOR: ","M. JACOBSON"]
[null,"DATE: ","2014-01-06"]
[]
[null,"PURPOSE: ","This document is the formal reference for necessary revisions of each child of the stated assemblies, and the total necessary quantities for all items."]
[]
[]
[]
[]
[]
[]
[]
[]
[]
[]
["Subsystem:","RH",null,null,null,null,null,null,null,null,null,null,null,null,null,null,null,null,null,null,null,null,null,null,"PDR","delta-PDR","FDR","XXX"]
["Reporter:","Mindy Jacobson"]
["Date:","2010-08-09",null,null,null,null,null,null,null,null,null,null,null,null,null,null,null,null,null,null,null,null,null,null,null,null,null,null,"RESERVED for\nPROCUREMENT TRACKING"]
[]
[null,"Total No. Dwgs = ",{"$f":"COUNT(#REF!,W46:W114)","v":6}]
[null,"Aggregate %-complete = ",{"$f":"SUM(#REF!,W46:W114)/C40","v":{"$error":"#REF!"}}]
[]
[null,null,null,null,null,null,null,null,null,null,"QUANTITY"]
["DCN","NOTES","Level","INDENTURE CHART",null,null,null,null,null,null,"REQ'd","SPARE","TOT.","UNITS","DWG TREE REF. NO.","MATERIAL","DCC No.","CONFIG\n[TYPE]",null,"NAME","TYPE","MODEL STATUS","DWG STATUS","SOURCE","REV.","REV.","REV.","REV."]
["No.",null,null,null,null,null,null,null,null,null,null,null,null,null,null,null,null,null,null,null,null,"% COMPLETE"]
["E1400004",null,0,{"$f":"$C46","v":0},0,0,0,0,0,0,1,0,{"$f":"L46+K46","v":1},"EA","E1400005",null,"D1001227",null,null,"aLIGO TCS CORNER STATION [VERTEX] LAYOUT, TOP ASSEMBLY","TopAssy",100,90,"MTS","N/A","N/A","v5"]
["E1400004","X-ARM BSC3",1,1,1,1,1,1,1,1,1,0,{"$f":"L47+K47","v":1},"EA","E1400005",null,"D1000634","-01",null,"[aLIGO] TCS CO2P TABLE ASSEMBLY, H1-L1 [X-arm]","ASSY",100,90,"MTS","N/A","N/A","v1"]
[null,null,2,2,2,2,2,2,null,null,1,0,{"$f":"L48+K48","v":1},"EA",null,"Al 6061","D1200953","-01",null,"PERISCOPE ASSEMBLY, IN AIR, aLIGO TCS CO2 LASER PROJECTION TABLE, H1-L1","ASSY",null,null,"MTS",null,null,"v2"]
[null,null,2,2,2,2,2,2,null,null,1,0,{"$f":"L49+K49","v":1},"EA",null,"MULTI","D1300294",null,null,"H1-L1 LAYOUT, aLIGO TCS CO2 LASER PROJECTION SYSTEM TABLE ASSEMBLY","ASSY",null,null,"MTS"]
[null,"NEWPORT",2,2,2,2,2,2,null,null,1,0,{"$f":"L50+K50","v":1},"EA",null,"MULTI","RS4000-410-18",null,null,"OPTICS TABLE 4 FT X 10 FT X 18 IN","ASSY",null,null,"OTS"]
[null,"NEWPORT",2,2,2,2,2,2,null,null,1,0,1,"EA",null,"MULTI","RL-2000-423.5TC",null,null,"OPTICS TABLE SUPPORTS, 24 IN","ASSY",null,null,"OTS"]
[null,"MINITEC",2,2,2,2,2,2,null,null,1,0,1,"EA",null,"MULTI","D1200761",null,null,"aLIGO TCS CO2P TABLE ENCLOSURE","ASSY",null,null,"MTS",null,null,"v1"]
[null,"ENVIRCO",2,2,2,2,2,2,null,null,1,0,{"$f":"L53+K53","v":1},"EA",null,"MULTI","MAC 10",null,null,"HEPA FAN-LITER UNIT","ASSY",null,null,"OTS"]
[null,"SUPERBRIGHT LEDs",2,2,2,2,2,2,null,null,4,0,{"$f":"L54+K54","v":4},"EA",null,"MULTI","LBFA-NW24",null,null,"LBFA 24 VDC LINEAR LIGHT FIXTURE","PRT",null,null,"OTS"]
[null,"MCMASTER-CARR",2,2,2,2,2,2,null,null,10,0,10,"EA",null,"NYLON","7566K25",null,null,"CABLE TIE HOLDER","PRT",null,null,"OTS"]
[null,"SUPERBRIGHT LEDs",2,2,2,2,2,2,null,null,1,0,1,"EA",null,"MULTI","24VDC-PS",null,null,"LUXBAR 24 VDC ENCLOSED POWER SUPPLY","ASSY",null,null,"OTS"]
[null,"SUPERBRIGHT LEDs",2,2,2,2,2,2,null,null,1,0,1,"EA",null,"MULTI","LBFA-DT",null,null,"LUXBAR MINI TOUCH DIMMER","ASSY",null,null,"OTS"]
[null,"SUPERBRIGHT LEDs",2,{"$f":"$C58","v":2},2,2,2,2,null,null,4,0,4,"EA",null,"MULTI","LBFA-Ix",null,null,"LUXBAR INTERCONNECT JUMPER","PRT",null,null,"OTS"]
[null,null,2,2,2,2,2,2,null,null,1,0,1,"EA",null,"MULTI","D1300508",null,null,"aLIGO TCS CO2P ENCLOSURE PATCH PANEL ASSY, LASER END","ASSY",null,null,"MTS",null,null,"v1"]
[null,null,2,2,2,2,2,2,null,null,1,0,1,"EA",null,"MULTI","D1300764",null,null,"aLIGO TCS CO2P ENCLOSURE PATCH PANEL ASSY, PERISCOPE END","ASSY",null,null,"MTS",null,null,"v1"]
[null,null,2,2,2,2,2,2,null,null,1,0,1,"EA",null,"MULTI","D1101509",null,null,"PICO MOTOR DRIVER CHASSIS","ASSY",null,null,"MTS",null,null,"v2"]
[null,null,2,2,2,2,2,2,null,null,1,0,1,"EA",null,"MULTI","D1300649",null,null,"aLIGO TCS ISS AND INTERFACE CHASSIS","ASSY",null,null,"MTS",null,null,"v1"]
[null,null,2,2,2,2,2,2,null,null,1,0,1,"EA",null,"MULTI","D1201062",null,null,"CO2 PROJECTOR ON-TABLE BREAKOUT BOX","ASSY",null,null,"MTS",null,null,"v1"]
[null,null,2,2,2,2,2,2,null,null,1,0,1,"EA",null,"MULTI","D1101935",null,null,"TCS RTD TEMPERATURE SENSOR PACKAGE","ASSY",null,null,"MTS",null,null,"v1"]
[null,null,2,2,2,2,2,2,null,null,1,0,1,"EA",null,"MULTI","D1101738",null,null,"PICO MOTOR BREAKOUT BOX","ASSY",null,null,"MTS",null,null,"v2"]
[null,null,2,2,2,2,2,2,null,null,1,0,{"$f":"L66+K66","v":1},"EA",null,"MULTI","D1300366",null,null,"TCS IR SENSOR COMPARATOR BOX","ASSY",null,null,"MTS",null,null,"v1"]
["E1400004","Y-ARM BSC1",1,1,1,1,1,1,1,1,1,0,{"$f":"L67+K67","v":1},"EA","E1400005",null,"D1000634",null,"-02","[aLIGO] TCS CO2P TABLE ASSEMBLY, H1-L1 [Y-arm]","ASSY",100,90,"MTS","N/A","N/A","v1"]
[null,null,2,2,2,2,2,2,null,null,1,0,{"$f":"L68+K68","v":1},"EA",null,"Al 6061","D1200953",null,"-02","PERISCOPE ASSEMBLY, IN AIR, aLIGO TCS CO2 LASER PROJECTION TABLE, H1-L1","ASSY",null,null,"MTS",null,null,"v2"]
[null,null,2,2,2,2,2,2,null,null,1,0,{"$f":"L69+K69","v":1},"EA",null,"MULTI","D1300294",null,null,"H1-L1 LAYOUT, aLIGO TCS CO2 LASER PROJECTION SYSTEM TABLE ASSEMBLY","ASSY",null,null,"MTS"]
[null,"NEWPORT",2,2,2,2,2,2,null,null,1,0,1,"EA",null,"MULTI","RS4000-410-18",null,null,"OPTICS TABLE 4 FT X 10 FT X 18 IN","ASSY",null,null,"OTS"]
[null,"NEWPORT",2,2,2,2,2,2,null,null,1,0,1,"EA",null,"MULTI","RL-2000-423.5TC",null,null,"OPTICS TABLE SUPPORTS, 24 IN","ASSY",null,null,"OTS"]
[null,"MINITEC PN AM02062013-1",2,2,2,2,2,2,null,null,1,0,1,"EA",null,"MULTI","D1200761",null,null,"aLIGO TCS CO2P TABLE ENCLOSURE","ASSY",null,null,"MTS",null,null,"v1"]
[null,"ENVIRCO",2,2,2,2,2,2,null,null,1,0,1,"EA",null,"MULTI","MAC 10",null,null,"HEPA FAN-LITER UNIT","ASSY",null,null,"OTS"]
[null,"SUPERBRIGHT LEDs",2,{"$f":"$C74","v":2},2,2,2,2,null,null,4,0,4,"EA",null,"MULTI","LBFA-NW24",null,null,"LBFA 24 VDC LINEAR LIGHT FIXTURE","PRT",null,null,"OTS"]
[null,"MCMASTER-CARR",2,2,2,2,2,2,null,null,10,0,10,"EA",null,"NYLON","7566K25",null,null,"CABLE TIE HOLDER","PRT",null,null,"OTS"]
[null,"SUPERBRIGHT LEDs",2,2,2,2,2,2,null,null,1,0,1,"EA",null,"MULTI","24VDC-PS",null,null,"LUXBAR 24 VDC ENCLOSED POWER SUPPLY","ASSY",null,null,"OTS"]
[null,"SUPERBRIGHT LEDs",2,2,2,2,2,2,null,null,1,0,1,"EA",null,"MULTI","LBFA-DT",null,null,"LUXBAR MINI TOUCH DIMMER","ASSY",null,null,"OTS"]
[null,"SUPERBRIGHT LEDs",2,2,2,2,2,2,null,null,4,0,4,"EA",null,"MULTI","LBFA-Ix",null,null,"LUXBAR INTERCONNECT JUMPER","PRT",null,null,"OTS"]
[null,"FRONT PANEL EXPRESS",2,2,2,2,2,2,null,null,1,0,1,"EA",null,"MULTI","D1300508",null,null,"aLIGO TCS CO2P ENCLOSURE PATCH PANEL ASSY, LASER END","ASSY",null,null,"MTS",null,null,"v1"]
[null,"FRONT PANEL EXPRESS",2,2,2,2,2,2,null,null,1,0,1,"EA",null,"MULTI","D1300764",null,null,"aLIGO TCS CO2P ENCLOSURE PATCH PANEL ASSY, PERISCOPE END","ASSY",null,null,"MTS",null,null,"v1"]
[null,null,2,2,2,2,2,2,null,null,1,0,1,"EA",null,"MULTI","D1101509",null,null,"PICO MOTOR DRIVER CHASSIS","ASSY",null,null,"MTS",null,null,"v2"]
[null,null,2,2,2,2,2,2,null,null,1,0,1,"EA",null,"MULTI","D1300649",null,null,"aLIGO TCS ISS AND INTERFACE CHASSIS","ASSY",null,null,"MTS",null,null,"v1"]
[null,null,2,2,2,2,2,2,null,null,1,0,1,"EA",null,"MULTI","D1201062",null,null,"CO2 PROJECTOR ON-TABLE BREAKOUT BOX","ASSY",null,null,"MTS",null,null,"v1"]
[null,null,2,2,2,2,2,2,null,null,1,0,1,"EA",null,"MULTI","D1101935",null,null,"TCS RTD TEMPERATURE SENSOR PACKAGE","ASSY",null,null,"MTS",null,null,"v1"]
[null,null,2,2,2,2,2,2,null,null,1,0,1,"EA",null,"MULTI","D1101738",null,null,"PICO MOTOR BREAKOUT BOX","ASSY",null,null,"MTS",null,null,"v2"]
[null,null,2,2,2,2,2,2,null,null,1,0,1,"EA",null,"MULTI","D1300366",null,null,"TCS IR SENSOR COMPARATOR BOX","ASSY",null,null,"MTS",null,null,"v1"]
["E1300826","X-ARM BSC3",1,1,1,1,1,1,null,null,1,0,{"$f":"L87+K87","v":1},"EA","E1200248","MULTI","D1101627","-01",null,"VIEWPORT ENCLOSURE ASSY, H1-L1 CO2P [X-arm]","ASSY",100,90,"MTS","N/A","N/A","v3"]
["E1300826","Y-ARM BSC1",1,1,1,1,1,1,null,null,1,0,{"$f":"L88+K88","v":1},"EA","E1200248","MULTI","D1101627",null,"-02","VIEWPORT ENCLOSURE ASSY, H1-L1 CO2P [Y-arm]","ASSY",100,90,"MTS","N/A","N/A","v3"]
[null,"HAM4",1,1,1,1,1,1,1,1,1,0,1,"EA",null,null,"D1000635",null,null,"[aLIGO] TCS HWS TABLE ASSEMBLY, HAM4","ASSY",100,90,"MTS","N/A","N/A","v1"]
[null,"MINITEC PN AM02062013-1",2,2,2,2,2,2,2,2,1,0,{"$f":"L90+K90","v":1},"EA",null,null,"D1102412",null,null,"aLIGO TCS HWS HAM4 TABLE ENCLOSURE","ASSY",null,null,"MTS",null,null,"v1"]
[null,"NEWPORT",2,{"$f":"$C91","v":2},2,2,2,2,null,null,1,0,1,"EA",null,"MULTI","RS4000-410-18",null,null,"OPTICS TABLE 4 FT X 10 FT X 18 IN","ASSY",null,null,"OTS"]
[null,"NEWPORT",2,2,2,2,2,2,null,null,1,0,1,"EA",null,"MULTI","RL-2000-423.5TC",null,null,"OPTICS TABLE SUPPORTS, 24 IN","ASSY",null,null,"OTS"]
[null,"ENVIRCO",2,2,2,2,2,2,2,2,1,0,1,"EA",null,"MULTI","MAC10",null,null,"HEPA FILTER BANK","ASSY",null,null,"OTS"]
[null,"SUPERBRIGHT LEDs",2,{"$f":"$C94","v":2},2,2,2,2,null,null,3,0,3,"EA",null,"MULTI","LBFA-NW24",null,null,"LBFA 24 VDC LINEAR LIGHT FIXTURE","PRT",null,null,"OTS"]
[null,"MCMASTER-CARR",2,2,2,2,2,2,null,null,8,0,8,"EA",null,"NYLON","7566K25",null,null,"CABLE TIE HOLDER","PRT",null,null,"OTS"]
[null,"SUPERBRIGHT LEDs",2,2,2,2,2,2,null,null,1,0,1,"EA",null,"MULTI","24VDC-PS",null,null,"LUXBAR 24 VDC ENCLOSED POWER SUPPLY","ASSY",null,null,"OTS"]
[null,"SUPERBRIGHT LEDs",2,2,2,2,2,2,null,null,1,0,1,"EA",null,"MULTI","LBFA-DT",null,null,"LUXBAR MINI TOUCH DIMMER","ASSY",null,null,"OTS"]
[null,"SUPERBRIGHT LEDs",2,2,2,2,2,2,null,null,3,0,3,"EA",null,"MULTI","LBFA-Ix",null,null,"LUXBAR INTERCONNECT JUMPER","PRT",null,null,"OTS"]
[null,"FRONT PANEL EXPRESS",2,2,2,2,2,2,2,2,1,0,{"$f":"L99+K99","v":1},"EA",null,"MULTI","D1300455",null,null,"aLIGO TCS HWS HAM4 TABLE ENCLOSURE [-Y] SIDE PATCH PANEL ASSY","ASSY",null,null,"MTS",null,null,"v1"]
[null,"FRONT PANEL EXPRESS",2,2,2,2,2,2,2,2,1,0,{"$f":"L100+K100","v":1},"EA",null,"MULTI","D1300456",null,null,"aLIGO TCS HWS HAM4 TABLE ENCLOSURE [+Y] SIDE PATCH PANEL ASSY","ASSY",null,null,"MTS",null,null,"v1"]
["E1300169","2 PER TABLE",2,2,2,2,2,2,2,2,2,0,{"$f":"L101+K101","v":2},"EA","E1300170","Al 6061","D1300197",null,null,"HWS BEAM TUBE ENCLOSURE CLAMP ASSEMBLY","ASSY",null,null,"MTS",null,null,"v1"]
[null,null,2,{"$f":"$C102","v":2},2,2,2,2,null,null,1,0,{"$f":"L102+K102","v":1},"EA",null,"MULTI","D1300300",null,null,"aLIGO TCS HWS-X OPTO-MECH TABLE LAYOUT ASSEMBLY","ASSY",null,null,"MTS",null,null,"v1"]
[null,null,2,2,2,2,2,2,null,null,1,0,1,"EA",null,"MULTI","D1300302",null,null,"aLIGO TCS HWS-Y OPTO-MECH TABLE LAYOUT ASSEMBLY","ASSY",null,null,"MTS",null,null,"v1"]
["E1300281",null,2,2,2,2,2,2,null,null,1,0,{"$f":"L104+K104","v":1},"EA","E1300170","Al 6061","D1300198","-01",null,"aLIGO TCS HWSX-HWSY PERISCOPE ASSEMBLY","ASSY",null,null,"MTS",null,null,"v1"]
["E1300281",null,2,2,2,2,2,2,null,null,1,0,1,"EA","E1300170","Al 6061","D1300198",null,"-02","aLIGO TCS HWSX-HWSY PERISCOPE ASSEMBLY","ASSY",null,null,"MTS",null,null,"v1"]
[null,null,2,2,2,2,2,2,null,null,1,0,1,"EA",null,"MULTI","D1101509",null,null,"PICO MOTOR DRIVER CHASSIS","ASSY",null,null,"MTS",null,null,"v2"]
[null,null,2,2,2,2,2,2,null,null,1,0,{"$f":"L107+K107","v":1},"EA",null,"MULTI","D1200934",null,null,"HARTMANN CORNER STATION BREAKOUT CHASSIS","ASSY",null,null,"MTS",null,null,"v1"]
[null,null,2,2,2,2,2,2,null,null,1,0,1,"EA",null,"MULTI","D1101738",null,null,"PICO MOTOR BREAKOUT BOX","ASSY",null,null,"MTS",null,null,"v2"]
["E1300169",null,1,1,1,1,1,1,{"$f":"$C109","v":1},1,1,0,{"$f":"L109+K109","v":1},"EA","E1300170","MULTI","D1102389",null,null,"aLIGO TCS HWS HAM4 HWS-X VIEWPORT and BEAM ENCLOSURE ASSY","ASSY",null,null,"MTS",null,null,"v2"]
["E1300169",null,1,1,1,1,1,1,1,1,1,0,{"$f":"L110+K110","v":1},"EA","E1300170","MULTI","D1102397",null,null,"aLIGO TCS HWS HAM4 HWS-X VIEWPORT and BEAM ENCLOSURE ASSY","ASSY",null,null,"MTS",null,null,"v2"]
["E1300607","L1",1,1,1,1,1,1,1,1,1,0,{"$f":"L111+K111","v":1},"EA","E1300608","PVC, SSTL","D1300617","-01",null,"PLUMBING LAYOUT, aLIGO TCS CO2 LASER PROJECTION SYSTEM [X-arm Supply]","ASSY",null,null,"MTS",null,null,"v1"]
["E1300607","L1",1,{"$f":"$C112","v":1},1,1,1,1,1,1,1,0,{"$f":"L112+K112","v":1},"EA","E1300608","PVC, SSTL","D1300617","-11",null,"PLUMBING LAYOUT, aLIGO TCS CO2 LASER PROJECTION SYSTEM [X-arm Return]","ASSY",null,null,"MTS",null,null,"v1"]
["E1300607","L1",1,1,1,1,1,1,1,1,1,0,1,"EA","E1300608","PVC, SSTL","D1300617",null,"-02","PLUMBING LAYOUT, aLIGO TCS CO2 LASER PROJECTION SYSTEM [Y-arm Supply]","ASSY",null,null,"MTS",null,null,"v1"]
["E1300607","L1",1,{"$f":"$C114","v":1},1,1,1,1,1,1,1,0,1,"EA","E1300608","PVC, SSTL","D1300617",null,"-12","PLUMBING LAYOUT, aLIGO TCS CO2 LASER PROJECTION SYSTEM [Y-arm Return]","ASSY",null,null,"MTS",null,null,"v1"]
["E1300607","H1",1,1,1,1,1,1,1,1,1,0,1,"EA","E1300813","PVC, SSTL","D1300617","-101",null,"PLUMBING LAYOUT, aLIGO TCS CO2 LASER PROJECTION SYSTEM [X-arm Supply]","ASSY",null,null,"MTS",null,null,"v1"]
["E1300607","H1",1,1,1,1,1,1,1,1,1,0,{"$f":"L116+K116","v":1},"EA","E1300813","PVC, SSTL","D1300617","-111",null,"PLUMBING LAYOUT, aLIGO TCS CO2 LASER PROJECTION SYSTEM [X-arm Return]","ASSY",null,null,"MTS",null,null,"v1"]
["E1300607","H1",1,1,1,1,1,1,1,1,1,0,1,"EA","E1300813","PVC, SSTL","D1300617",null,"-102","PLUMBING LAYOUT, aLIGO TCS CO2 LASER PROJECTION SYSTEM [Y-arm Supply]","ASSY",null,null,"MTS",null,null,"v1"]
["E1300607","H1",1,1,1,1,1,1,1,1,1,0,1,"EA","E1300813","PVC, SSTL","D1300617",null,"-112","PLUMBING LAYOUT, aLIGO TCS CO2 LASER PROJECTION SYSTEM [Y-arm Return]","ASSY",null,null,"MTS",null,null,"v1"]